fUST/lending_fUST_20260310
["ID","MTS","AMOUNT","RATE_DAILY","PERIOD"]
[408081761,1773119243583,-500.0,7.373e-05,2]
[408081762,1773119243606,-500.0,7.373e-05,2]
[408081763,1773119243630,-500.0,7.373e-05,2]
[408081764,1773119243653,-449.14059481,7.373e-05,2]
[408081765,1773119243883,-50.85940519,7.373e-05,2]
[408081766,1773119243909,-500.0,7.373e-05,2]
[408081767,1773119243930,-500.0,7.373e-05,2]
[408081768,1773119243953,-500.0,7.373e-05,2]
[408081769,1773119243977,-449.14059481,7.373e-05,2]
[408081770,1773119244233,-50.85940519,7.373e-05,2]
[408081771,1773119244255,-500.0,7.373e-05,2]
[408081772,1773119244279,-500.0,7.373e-05,2]
[408081773,1773119244303,-500.0,7.373e-05,2]
[408081774,1773119244326,-449.14059481,7.373e-05,2]
[408081775,1773119244570,-50.85940519,7.373e-05,2]
[408081776,1773119244592,-500.0,7.373e-05,2]
[408081777,1773119244615,-500.0,7.373e-05,2]
[408081778,1773119244637,-500.0,7.373e-05,2]
[408081779,1773119244659,-449.14059481,7.373e-05,2]
[408081780,1773119244931,-50.85940519,7.373e-05,2]
[408081781,1773119244956,-500.0,7.373e-05,2]
[408081782,1773119244979,-401.92929923,7.373e-05,2]
[408081783,1773119245002,-500.0,7.373e-05,2]
[408081784,1773119245025,-500.0,7.373e-05,2]
[408081785,1773119245048,-47.21129558,7.373e-05,2]
[408081786,1773119245292,-452.78870442,7.373e-05,2]
[408081787,1773119245315,-500.0,7.373e-05,2]
[408081788,1773119245339,-500.0,7.373e-05,2]
[408081789,1773119245362,-500.0,7.373e-05,2]
[408081790,1773119245385,-47.21129558,7.373e-05,2]
[408081791,1773119245678,-452.78870442,7.373e-05,2]
[408081792,1773119245701,-500.0,7.373e-05,2]
[408081793,1773119245722,-500.0,7.373e-05,2]
[408081794,1773119245744,-500.0,7.373e-05,2]
[408081795,1773119245768,-47.21129558,7.373e-05,2]
[408081796,1773119245988,-452.78870442,7.373e-05,2]
[408081797,1773119246013,-500.0,7.373e-05,2]
[408081798,1773119246037,-500.0,7.373e-05,2]
[408081799,1773119246062,-500.0,7.373e-05,2]
[408081800,1773119246086,-47.21129558,7.373e-05,2]
[408081801,1773119246373,-452.78870442,7.373e-05,2]
[408081802,1773119246397,-500.0,7.373e-05,2]
[408081803,1773119246421,-500.0,7.373e-05,2]
[408081804,1773119246446,-500.0,7.373e-05,2]
[408081805,1773119246471,-47.21129558,7.373e-05,2]
[408081806,1773119246714,-452.78870442,7.373e-05,2]
[408081807,1773119246740,-500.0,7.373e-05,2]
[408081808,1773119246765,-500.0,7.373e-05,2]
[408081809,1773119246789,-500.0,7.373e-05,2]
[408081810,1773119246813,-47.21129558,7.373e-05,2]
[408081811,1773119247547,-452.78870442,7.373e-05,2]
[408081812,1773119247573,-500.0,7.373e-05,2]
[408081813,1773119247597,-500.0,7.373e-05,2]
[408081814,1773119247621,-500.0,7.373e-05,2]
[408081815,1773119247646,-47.21129558,7.373e-05,2]
[408081816,1773119248228,-452.78870442,7.373e-05,2]
[408081817,1773119248259,-500.0,7.373e-05,2]
[408081818,1773119248308,-500.0,7.373e-05,2]
[408081819,1773119248338,-500.0,7.373e-05,2]
[408081820,1773119248372,-47.21129558,7.373e-05,2]
[408081821,1773119248465,-452.78870442,7.373e-05,2]
[408081822,1773119248491,-500.0,7.373e-05,2]
[408081823,1773119248516,-500.0,7.373e-05,2]
[408081824,1773119248544,-500.0,7.373e-05,2]
[408081825,1773119248573,-47.21129558,7.373e-05,2]
[408081826,1773119248739,-452.78870442,7.373e-05,2]
[408081827,1773119248769,-500.0,7.373e-05,2]
[408081828,1773119248797,-500.0,7.373e-05,2]
[408081829,1773119248829,-500.0,7.373e-05,2]
[408081830,1773119248858,-47.21129558,7.373e-05,2]
[408081831,1773119249058,-452.78870442,7.373e-05,2]
[408081832,1773119249083,-500.0,7.373e-05,2]
[408081833,1773119249105,-500.0,7.373e-05,2]
[408081834,1773119249128,-500.0,7.373e-05,2]
[408081835,1773119249152,-47.21129558,7.373e-05,2]
[408081836,1773119249355,-452.78870442,7.373e-05,2]
[408081837,1773119249378,-500.0,7.373e-05,2]
[408081838,1773119249402,-500.0,7.373e-05,2]
[408081839,1773119249426,-500.0,7.373e-05,2]
[408081840,1773119249451,-47.21129558,7.373e-05,2]
[408081841,1773119249669,-452.78870442,7.373e-05,2]
[408081842,1773119249693,-500.0,7.373e-05,2]
[408081843,1773119249717,-500.0,7.373e-05,2]
[408081844,1773119249741,-500.0,7.373e-05,2]
[408081845,1773119249764,-47.21129558,7.373e-05,2]
[408081846,1773119250250,-452.78870442,7.373e-05,2]
[408081847,1773119250274,-500.0,7.373e-05,2]
[408081848,1773119250297,-500.0,7.373e-05,2]
[408081849,1773119250324,-500.0,7.373e-05,2]
[408081850,1773119250347,-47.21129558,7.373e-05,2]
[408081851,1773119250763,-452.78870442,7.373e-05,2]
[408081852,1773119250786,-500.0,7.373e-05,2]
[408081853,1773119250809,-636.87230476,7.373e-05,2]
[408081854,1773119250834,-410.33899082,7.373e-05,2]
[408081855,1773119253866,-89.66100918,7.373e-05,2]
[408081856,1773119253889,-500.0,7.373e-05,2]
[408081857,1773119253914,-500.0,7.373e-05,2]
[408081858,1773119253938,-500.0,7.373e-05,2]
[408081859,1773119253961,-410.33899082,7.373e-05,2]
[408081860,1773119257939,-89.66100918,7.373e-05,2]
[408081861,1773119257966,-500.0,7.373e-05,2]
[408081862,1773119257991,-500.0,7.373e-05,2]
[408081863,1773119258017,-500.0,7.373e-05,2]
[408081864,1773119258042,-410.33899082,7.373e-05,2]
[408081865,1773119259430,-2000.0,7.071e-05,2]
[408081866,1773119259767,-386.60261148,7.071e-05,2]
[408081867,1773119259789,-89.66100918,7.373e-05,2]
[408081868,1773119259813,-500.0,7.373e-05,2]
[408081869,1773119259838,-500.0,7.373e-05,2]
[408081870,1773119259863,-500.0,7.373e-05,2]
[408081871,1773119259889,-23.73637934,7.373e-05,2]
[408081872,1773119260097,-476.26362066,7.373e-05,2]
[408081873,1773119260118,-500.0,7.373e-05,2]
[408081874,1773119260372,-500.0,7.373e-05,2]
[408081875,1773119260397,-500.0,7.373e-05,2]
[408081876,1773119260420,-23.73637934,7.373e-05,2]
[408081877,1773119260471,-476.26362066,7.373e-05,2]
[408081878,1773119260494,-500.0,7.373e-05,2]
[408081879,1773119260517,-500.0,7.373e-05,2]
[408081880,1773119260540,-500.0,7.373e-05,2]
[408081881,1773119260563,-23.73637934,7.373e-05,2]
[408081882,1773119260882,-476.26362066,7.373e-05,2]
[408081883,1773119260908,-500.0,7.373e-05,2]
[408081884,1773119260935,-500.0,7.373e-05,2]
[408081885,1773119260958,-500.0,7.373e-05,2]
[408081886,1773119260981,-23.73637934,7.373e-05,2]
[408081887,1773119261455,-476.26362066,7.373e-05,2]
[408081888,1773119261478,-500.0,7.373e-05,2]
[408081889,1773119261500,-500.0,7.373e-05,2]
[408081890,1773119261523,-500.0,7.373e-05,2]
[408081891,1773119261547,-23.73637934,7.373e-05,2]
[408081892,1773119261812,-476.26362066,7.373e-05,2]
[408081893,1773119261837,-500.0,7.373e-05,2]
[408081894,1773119261858,-500.0,7.373e-05,2]
[408081895,1773119261880,-500.0,7.373e-05,2]
[408081896,1773119261900,-23.73637934,7.373e-05,2]
[408081897,1773119263289,-476.26362066,7.373e-05,2]
[408081898,1773119263311,-500.0,7.373e-05,2]
[408081899,1773119263333,-198.26356656,7.373e-05,2]
[408081900,1773119263355,-500.0,7.373e-05,2]
[408081901,1773119263377,-325.47281278,7.373e-05,2]
[408081902,1773119264450,-174.52718722,7.373e-05,2]
[408081903,1773119264475,-500.0,7.373e-05,2]
[408081904,1773119264498,-500.0,7.373e-05,2]
[408081905,1773119264523,-500.0,7.373e-05,2]
[408081906,1773119264547,-325.47281278,7.373e-05,2]
[408081907,1773119266242,-174.52718722,7.373e-05,2]
[408081908,1773119266264,-500.0,7.373e-05,2]
[408081909,1773119266286,-500.0,7.373e-05,2]
[408081910,1773119266307,-500.0,7.373e-05,2]
[408081911,1773119266328,-325.47281278,7.373e-05,2]
[408081912,1773119267957,-207.77502486,7.373e-05,2]
[408081913,1773119267981,-500.0,7.373e-05,2]
[408081914,1773119268003,-500.0,7.373e-05,2]
[408081915,1773119268026,-500.0,7.373e-05,2]
[408081916,1773119268050,-292.22497514,7.373e-05,2]
[408081917,1773119269050,-207.77502486,7.373e-05,2]
[408081918,1773119269073,-500.0,7.373e-05,2]
[408081919,1773119269097,-500.0,7.373e-05,2]
[408081920,1773119269120,-500.0,7.373e-05,2]
[408081921,1773119269144,-292.22497514,7.373e-05,2]
[408081926,1773119347134,-199.59542057,7.372e-05,2]
[408081927,1773119402512,152.42,2e-05,2]
[408081948,1773119433028,-1119.71724561,7.298e-05,2]
[408081951,1773119433050,-1080.28275439,7.298e-05,2]
[408081953,1773119433060,-523.0,7.298e-05,2]
[408081955,1773119433069,-300.0,7.371e-05,2]
[408081957,1773119433079,-193.04394545,7.373e-05,2]
[408081959,1773119433088,-1975.8229882,7.373e-05,2]
[408081961,1773119433097,-300.0,7.376e-05,2]
[408081963,1773119433107,-300.0,7.376e-05,2]
[408081965,1773119433116,-300.0,7.376e-05,2]
[408081967,1773119433128,-300.0,7.376e-05,2]
[408081969,1773119433136,-300.0,7.376e-05,2]
[408081971,1773119433145,-300.0,7.376e-05,2]
[408081973,1773119433154,-300.0,7.376e-05,2]
[408081975,1773119433163,-300.0,7.376e-05,2]
[408081977,1773119433173,-300.0,7.376e-05,2]
[408081979,1773119433182,-300.0,7.376e-05,2]
[408081981,1773119433191,-300.0,7.376e-05,2]
[408081983,1773119433200,-300.0,7.376e-05,2]
[408081985,1773119433210,-300.0,7.376e-05,2]
[408081986,1773119433219,-300.0,7.376e-05,2]
[408081988,1773119433229,-300.0,7.376e-05,2]
[408081990,1773119433238,-776.08379485,7.444e-05,2]
[408081992,1773119433249,-3061.15593286,7.444e-05,2]
[408082012,1773119438520,-430.01512389,7.371e-05,2]
[408082013,1773119438529,-500.0,7.371e-05,2]
[408082014,1773119438539,-11.80279133,7.371e-05,2]
[408082015,1773119438553,-488.19720867,7.371e-05,2]
[408082016,1773119438562,-500.0,7.371e-05,2]
[408082017,1773119438571,-500.0,7.371e-05,2]
[408082018,1773119438580,-500.0,7.371e-05,2]
[408082019,1773119438590,-500.0,7.371e-05,2]
[408082020,1773119438600,-500.0,7.371e-05,2]
[408082021,1773119438609,-500.0,7.371e-05,2]
[408082022,1773119438619,-500.0,7.371e-05,2]
[408082023,1773119438628,-500.0,7.371e-05,2]
[408082024,1773119438637,-253.8801604,7.371e-05,2]
[408082025,1773119438646,-500.0,7.371e-05,2]
[408082026,1773119438655,-500.0,7.371e-05,2]
[408082027,1773119438664,-500.0,7.371e-05,2]
[408082028,1773119438673,-500.0,7.371e-05,2]
[408082029,1773119438683,-500.0,7.371e-05,2]
[408082030,1773119438692,-525.33247837,7.371e-05,2]
[408082031,1773119438701,-500.0,7.371e-05,2]
[408082032,1773119438711,-500.0,7.371e-05,2]
[408082033,1773119438720,-500.0,7.371e-05,2]
[408082034,1773119438729,-500.0,7.371e-05,2]
[408082035,1773119438738,-500.0,7.371e-05,2]
[408082036,1773119438747,-500.0,7.371e-05,2]
[408082037,1773119438757,-500.0,7.371e-05,2]
[408082038,1773119438766,-500.0,7.371e-05,2]
[408082039,1773119438775,-500.0,7.371e-05,2]
[408082040,1773119438784,-500.0,7.371e-05,2]
[408082041,1773119438794,-500.0,7.371e-05,2]
[408082042,1773119438803,-500.0,7.371e-05,2]
[408082043,1773119438812,-500.0,7.371e-05,2]
[408082044,1773119438821,-500.0,7.371e-05,2]
[408082045,1773119438830,-500.0,7.371e-05,2]
[408082046,1773119438839,-3073.80979233,7.444e-05,2]
[408082047,1773119438848,-1590.206035,7.513e-05,2]
[408082048,1773119438858,-600.0,7.522e-05,2]
[408082049,1773119438867,-500.0,7.773e-05,2]
[408082050,1773119438879,-1590.206035,7.794e-05,2]
[408082051,1773119438891,-2905.2144998,7.795e-05,2]
[408082052,1773119438901,-1590.206035,8.075e-05,2]
[408082053,1773119438911,-420.0,8.108e-05,2]
[408082054,1773119438920,-151.97699949,8.219e-05,2]
[408082055,1773119438932,-500.0,8.219e-05,2]
[408082056,1773119438943,-566.97546004,8.219e-05,2]
[408082057,1773119438952,-720.0,8.275e-05,2]
[408082058,1773119438965,-423.40023017,8.321e-05,2]
[408082059,1773119438975,-1975.8229882,8.429e-05,2]
[408082060,1773119438985,-500.0,8.703e-05,2]
[408082061,1773119438995,-23153.84494495,8.722e-05,2]
[408082062,1773119439043,-12708.64734185,8.722e-05,2]
[408082063,1773119439052,-587.0,8.919e-05,2]
[408082064,1773119439062,-1665.9663638,9.027e-05,2]
[408082065,1773119439071,-864.0,9.102e-05,2]
[408082066,1773119439080,-1095.43838138,9.251e-05,2]
[408082067,1773119439089,-227.79185563,9.373e-05,2]
[408082068,1773119439098,-1975.8229882,9.484e-05,2]
[408082069,1773119439107,-437.96641775,9.577e-05,2]
[408082070,1773119439116,-223.0,9.811e-05,2]
[408082071,1773119439125,-1340.17586443,0.0001,2]
[408082072,1773119439134,-1000.0,0.00010012,2]
[408082073,1773119439144,-168.50907555,0.00010017,2]
[408082074,1773119439153,-151.0,0.00010017,2]
[408082075,1773119439162,-156.587,0.00010017,2]
[408082076,1773119439172,-162.380719,0.00010017,2]
[408082077,1773119439181,-537.6845,0.00010017,2]
[408082078,1773119439191,-168.3888056,0.00010017,2]
[408082079,1773119439199,-174.61919141,0.00010017,2]
[408082080,1773119439208,-181.08010149,0.00010017,2]
[408082081,1773119439217,-187.78006525,0.00010017,2]
[408082082,1773119439226,-194.72792766,0.00010017,2]
[408082083,1773119439235,-201.93286099,0.00010017,2]
[408082084,1773119439244,-209.40437684,0.00010017,2]
[408082085,1773119439253,-217.15233878,0.00010017,2]
[408082086,1773119439262,-162.380719,0.00010017,2]
[408082087,1773119439271,-225.18697532,0.00010017,2]
[408082088,1773119439280,-233.51889341,0.00010017,2]
[408082089,1773119439289,-2150.738,0.00010017,2]
[408082090,1773119439298,-242.15909246,0.00010017,2]
[408082091,1773119439307,-251.11897888,0.00010017,2]
[408082092,1773119439316,-260.4103811,0.00010017,2]
[408082093,1773119439325,-270.0455652,0.00010017,2]
[408082094,1773119439339,-280.03725112,0.00010017,2]
[408082095,1773119439348,-290.39862941,0.00010017,2]
[408082096,1773119439357,-301.1433787,0.00010017,2]
[408082097,1773119439366,-162.81299789,0.00010017,2]
[408082098,1773119439376,-409.84112349,0.000102,2]
[408082099,1773119439385,-218.84547706,0.000102,2]
[408082100,1773119439395,-233.56057858,0.000102,2]
[408082101,1773119439405,-204.92056174,0.000102,2]
[408082102,1773119439414,-1340.17586443,0.00010368,2]
[408082103,1773119439424,-1975.8229882,0.0001054,2]
[408082104,1773119439433,-557.5788265,0.00010565,2]
[408082105,1773119439442,-168.45377953,0.00010565,2]
[408082106,1773119439451,-2230.315306,0.00010565,2]
[408082107,1773119439460,-161.75885387,0.00010672,2]
[408082108,1773119439470,-1340.17586443,0.00010735,2]
[408082109,1773119439734,-409.84112349,0.00010947,2]
[408082110,1773119439744,-233.56057858,0.00010947,2]
[408082111,1773119439753,-151.0,0.00010959,2]
[408082112,1773119439764,-151.0,0.00010959,2]
[408082113,1773119439773,-151.0,0.00010959,2]
[408082114,1773119439783,-293.573827,0.00010959,2]
[408082115,1773119439792,-151.0,0.00010959,2]
[408082116,1773119439801,-151.0,0.00010959,2]
[408082117,1773119439811,-151.0,0.00010959,2]
[408082118,1773119439820,-151.0,0.00010959,2]
[408082119,1773119439829,-151.0,0.00010959,2]
[408082120,1773119439838,-151.0,0.00010959,2]
[408082121,1773119439848,-151.0,0.00010959,2]
[408082122,1773119439857,-151.0,0.00010959,2]
[408082123,1773119439866,-151.0,0.00010959,2]
[408082124,1773119439875,-151.0,0.00010959,2]
[408082125,1773119439885,-234.9105,0.00010959,2]
[408082126,1773119439898,-195.157624,0.00010959,2]
[408082127,1773119439907,-195.157624,0.00010959,2]
[408082128,1773119439916,-195.157624,0.00010959,2]
[408082129,1773119439926,-195.157624,0.00010959,2]
[408082130,1773119439937,-195.157624,0.00010959,2]
[408082131,1773119439946,-682.5619,0.00010959,2]
[408082132,1773119439956,-195.157624,0.00010959,2]
[408082133,1773119439968,-682.5619,0.00010959,2]
[408082134,1773119439977,-195.157624,0.00010959,2]
[408082135,1773119439987,-682.5619,0.00010959,2]
[408082136,1773119439996,-195.157624,0.00010959,2]
[408082137,1773119440005,-682.5619,0.00010959,2]
[408082138,1773119440015,-195.157624,0.00010959,2]
[408082139,1773119440024,-682.5619,0.00010959,2]
[408082140,1773119440034,-195.157624,0.00010959,2]
[408082141,1773119440043,-682.5619,0.00010959,2]
[408082142,1773119440052,-195.157624,0.00010959,2]
[408082143,1773119440062,-682.5619,0.00010959,2]
[408082144,1773119440072,-195.157624,0.00010959,2]
[408082145,1773119440081,-682.5619,0.00010959,2]
[408082146,1773119440090,-195.157624,0.00010959,2]
[408082147,1773119440100,-682.5619,0.00010959,2]
[408082148,1773119440111,-195.157624,0.00010959,2]
[408082149,1773119440121,-682.5619,0.00010959,2]
[408082150,1773119440131,-195.157624,0.00010959,2]
[408082151,1773119440140,-682.5619,0.00010959,2]
[408082152,1773119440150,-195.157624,0.00010959,2]
[408082153,1773119440159,-682.5619,0.00010959,2]
[408082154,1773119440170,-195.157624,0.00010959,2]
[408082155,1773119440179,-682.5619,0.00010959,2]
[408082156,1773119440188,-195.157624,0.00010959,2]
[408082157,1773119440197,-682.5619,0.00010959,2]
[408082158,1773119440206,-195.157624,0.00010959,2]
[408082159,1773119440215,-682.5619,0.00010959,2]
[408082160,1773119440224,-195.157634,0.00010959,2]
[408082161,1773119440233,-682.5619,0.00010959,2]
[408082163,1773119440242,-682.5619,0.00010959,2]
[408082165,1773119440251,-682.5619,0.00010959,2]
[408082167,1773119440260,-682.5619,0.00010959,2]
[408082169,1773119440270,-682.56189,0.00010959,2]
[408082171,1773119440280,-151.0,0.00010959,2]
[408082172,1773119440289,-151.0,0.00010959,2]
[408082173,1773119440298,-151.0,0.00010959,2]
[408082174,1773119440307,-151.0,0.00010959,2]
[408082175,1773119440316,-151.0,0.00010959,2]
[408082176,1773119440325,-151.0,0.00010959,2]
[408082177,1773119440334,-166.458206,0.00010959,2]
[408082178,1773119440343,-2777.590645,0.00010959,2]
[408082179,1773119440352,-2777.590645,0.00010959,2]
[408082180,1773119440361,-2777.590645,0.00010959,2]
[408082181,1773119440371,-2777.590645,0.00010959,2]
[408082182,1773119440380,-2777.590645,0.00010959,2]
[408082183,1773119440390,-2777.590645,0.00010959,2]
[408082185,1773119440399,-2777.590645,0.00010959,2]
[408082187,1773119440409,-2777.590645,0.00010959,2]
[408082188,1773119440418,-2777.590645,0.00010959,2]
[408082189,1773119440427,-2777.590645,0.00010959,2]
[408082190,1773119440437,-2777.590645,0.00010959,2]
[408082191,1773119440446,-2777.590645,0.00010959,2]
[408082192,1773119440456,-2777.590645,0.00010959,2]
[408082193,1773119440466,-2777.590645,0.00010959,2]
[408082194,1773119440476,-2777.590645,0.00010959,2]
[408082195,1773119440485,-444.98720336,0.00010959,2]
[408082228,1773119440893,-336.25663858,0.00010959,2]
[408082303,1773119443629,-1179.67946753,7.372e-05,2]
[408082304,1773119443641,-3256.23330091,7.372e-05,2]
[408082341,1773119446711,-1116.17181009,7.297e-05,2]
[408082363,1773119738631,10000.0,2.001e-05,2]
[408082386,1773120566103,-3540.51925075,6.533e-05,2]
[408082387,1773120566125,-1115.83079182,6.585e-05,2]
[408082388,1773120566147,-2536.19808024,6.599e-05,2]
[408082389,1773120602711,161.19,2e-05,2]
[408082616,1773120637710,-2022.38299121,6.533e-05,2]
[408082618,1773120637722,-2977.61700879,6.533e-05,2]
[408082619,1773120637732,-514.0,6.599e-05,2]
[408082621,1773120637742,-188.30410882,6.649e-05,2]
[408082622,1773120637752,-452.871105,7.086e-05,2]
[408082623,1773120637761,-34633.64037381,7.364e-05,2]
[408082624,1773120637772,-15366.35962619,7.364e-05,2]
[408082626,1773120637782,-300.0,7.518e-05,2]
[408082628,1773120637791,-300.0,7.518e-05,2]
[408082629,1773120637802,-300.0,7.518e-05,2]
[408082631,1773120637811,-300.0,7.518e-05,2]
[408082633,1773120637820,-300.0,7.518e-05,2]
[408082635,1773120637830,-300.0,7.518e-05,2]
[408082638,1773120637840,-300.0,7.518e-05,2]
[408082640,1773120637849,-300.0,7.518e-05,2]
[408082642,1773120637859,-300.0,7.518e-05,2]
[408082643,1773120637869,-300.0,7.518e-05,2]
[408082644,1773120637878,-300.0,7.518e-05,2]
[408082645,1773120637888,-300.0,7.518e-05,2]
[408082646,1773120637898,-300.0,7.518e-05,2]
[408082647,1773120637916,-300.0,7.518e-05,2]
[408082648,1773120637929,-300.0,7.518e-05,2]
[408082649,1773120637938,-3175.0,7.59e-05,2]
[408082650,1773120637948,-600.0,7.667e-05,2]
[408082651,1773120637958,-500.0,7.759e-05,2]
[408082652,1773120637967,-2559.98412464,7.805e-05,2]
[408082653,1773120637977,-500.0,8.167e-05,2]
[408082654,1773120637987,-720.0,8.434e-05,2]
[408082655,1773120637996,-500.0,8.576e-05,2]
[408082656,1773120638006,-222.19884841,8.649e-05,2]
[408082657,1773120638015,-537.99110674,9.005e-05,2]
[408082658,1773120638024,-500.0,9.127e-05,2]
[408082659,1773120638033,-500.0,9.182e-05,2]
[408082660,1773120638043,-2740.65512389,9.208e-05,2]
[408082661,1773120638053,-500.0,9.237e-05,2]
[408082662,1773120638063,-864.0,9.277e-05,2]
[408082663,1773120638072,-500.0,9.291e-05,2]
[408082664,1773120638082,-410.38739248,9.338e-05,2]
[408082665,1773120638091,-253.85501427,9.346e-05,2]
[408082666,1773120638100,-151.0,9.401e-05,2]
[408082667,1773120638110,-156.587,9.401e-05,2]
[408082668,1773120638119,-162.380719,9.401e-05,2]
[408082669,1773120638128,-537.6845,9.401e-05,2]
[408082670,1773120638138,-168.3888056,9.401e-05,2]
[408082671,1773120638148,-174.61919141,9.401e-05,2]
[408082672,1773120638157,-181.08010149,9.401e-05,2]
[408082673,1773120638166,-187.78006525,9.401e-05,2]
[408082674,1773120638176,-194.72792766,9.401e-05,2]
[408082675,1773120638185,-201.93286099,9.401e-05,2]
[408082676,1773120638195,-209.40437684,9.401e-05,2]
[408082677,1773120638204,-217.15233878,9.401e-05,2]
[408082678,1773120638213,-225.18697532,9.401e-05,2]
[408082679,1773120638222,-233.51889341,9.401e-05,2]
[408082680,1773120638231,-242.15909246,9.401e-05,2]
[408082681,1773120638241,-2150.738,9.401e-05,2]
[408082682,1773120638255,-251.11897888,9.401e-05,2]
[408082683,1773120638264,-260.4103811,9.401e-05,2]
[408082684,1773120638273,-270.0455652,9.401e-05,2]
[408082685,1773120638282,-280.03725112,9.401e-05,2]
[408082686,1773120638293,-290.39862941,9.401e-05,2]
[408082687,1773120638302,-301.1433787,9.401e-05,2]
[408082688,1773120638312,-433.51904459,9.591e-05,2]
[408082689,1773120638322,-557.5788265,9.949e-05,2]
[408082690,1773120638331,-2230.315306,9.949e-05,2]
[408082691,1773120638340,-500.0,9.95e-05,2]
[408082692,1773120638350,-500.0,9.95e-05,2]
[408082693,1773120638359,-500.0,9.95e-05,2]
[408082694,1773120638368,-500.0,9.95e-05,2]
[408082695,1773120638378,-280.00865439,9.95e-05,2]
[408082696,1773120638387,-499.99999899,9.95e-05,2]
[408082697,1773120638397,-503.08773568,9.962e-05,2]
[408082698,1773120638406,-1000.0,0.00010205,2]
[408082699,1773120638415,-467.29774647,0.00010497,2]
[408082700,1773120638425,-2312.83697232,0.00010497,2]
[408082701,1773120638434,-2921.32612326,0.00010611,2]
[408082702,1773120638444,-77305.6080197,0.00010628,2]
[408082703,1773120638453,-256.093588,0.00010649,2]
[408082704,1773120638462,-196.130752,0.00010949,2]
[408082705,1773120638472,-528.72825,0.00010959,2]
[408082706,1773120638481,-528.72825,0.00010959,2]
[408082707,1773120638491,-528.72825,0.00010959,2]
[408082708,1773120638500,-528.72825,0.00010959,2]
[408082709,1773120638509,-3460.843958,0.00010959,2]
[408082710,1773120638518,-151.0,0.00010959,2]
[408082711,1773120638529,-3460.843958,0.00010959,2]
[408082712,1773120638539,-151.0,0.00010959,2]
[408082713,1773120638548,-3460.843958,0.00010959,2]
[408082714,1773120638557,-151.0,0.00010959,2]
[408082715,1773120638567,-3460.843958,0.00010959,2]
[408082716,1773120638576,-198.624973,0.00010959,2]
[408082717,1773120638585,-198.624973,0.00010959,2]
[408082718,1773120638594,-198.624973,0.00010959,2]
[408082719,1773120638603,-198.624973,0.00010959,2]
[408082720,1773120638613,-151.303802,0.00010959,2]
[408082721,1773120638622,-151.303802,0.00010959,2]
[408082722,1773120638631,-151.303802,0.00010959,2]
[408082723,1773120638641,-151.303802,0.00010959,2]
[408082724,1773120638658,-626.789305,0.00010959,2]
[408082725,1773120638677,-1191.828212,0.00010959,2]
[408082726,1773120638696,-626.789305,0.00010959,2]
[408082727,1773120638716,-1191.828212,0.00010959,2]
[408082728,1773120638731,-626.789305,0.00010959,2]
[408082729,1773120638741,-1191.828212,0.00010959,2]
[408082730,1773120638751,-626.789305,0.00010959,2]
[408082731,1773120638761,-1191.828212,0.00010959,2]
[408082732,1773120638770,-151.0,0.00010959,2]
[408082733,1773120638779,-254.355945,0.00010959,2]
[408082734,1773120638789,-472.35734,0.00010959,2]
[408082735,1773120638803,-254.355945,0.00010959,2]
[408082736,1773120638812,-472.35734,0.00010959,2]
[408082737,1773120638822,-254.355945,0.00010959,2]
[408082738,1773120638832,-472.35734,0.00010959,2]
[408082739,1773120638841,-254.355945,0.00010959,2]
[408082740,1773120638851,-472.35734,0.00010959,2]
[408082741,1773120638861,-631.636478,0.00010959,2]
[408082742,1773120638871,-631.636478,0.00010959,2]
[408082743,1773120638880,-631.636478,0.00010959,2]
[408082744,1773120638890,-631.636478,0.00010959,2]
[408082745,1773120638900,-151.0,0.00010959,2]
[408082746,1773120638910,-151.0,0.00010959,2]
[408082747,1773120638919,-151.0,0.00010959,2]
[408082748,1773120638929,-1635.162989,0.00010959,2]
[408082749,1773120638938,-151.0,0.00010959,2]
[408082750,1773120638952,-1635.162989,0.00010959,2]
[408082751,1773120638961,-617.614103,0.00010959,2]
[408082752,1773120638971,-1635.162989,0.00010959,2]
[408082753,1773120638980,-617.614103,0.00010959,2]
[408082754,1773120638990,-1635.162989,0.00010959,2]